bitfinex-derivatives/quotes_ETHF0:USTF0_20250606
["timestamp","ask_amount","ask_price","bid_price","bid_amount"]
[1749170365636,3.2078,2422.8,2422.6,1.2956]
[1749170365932,1.3089,2423.0,2422.6,1.2956]
[1749170366130,0.82512,2422.8,2422.6,1.2956]
[1749170366334,1.3089,2423.0,2422.6,1.2956]
[1749170366335,0.82509,2422.9,2422.6,1.2956]
[1749170367727,1.3089,2423.0,2422.7,0.82511]
[1749170368034,1.3274,2423.1,2422.7,4.03291]
[1749170368239,1.3274,2423.1,2422.8,1.3693]
[1749170368441,1.3274,2423.1,2422.8,2.19439]
[1749170368836,0.8249,2423.4,2423.0,0.82501]
[1749170369042,4.03268,2423.5,2422.9,1.4111]
[1749170369243,3.2078,2423.5,2423.0,4.5771]
[1749170369446,9.66415,2423.6,2423.1,0.82498]
[1749170369644,9.66415,2423.6,2423.2,1.3693]
[1749170369846,0.82487,2423.5,2423.2,1.3693]
[1749170370731,0.82491,2423.4,2423.2,1.3693]
[1749170370937,0.82495,2423.3,2422.9,7.5591]
[1749170371136,1.2839,2423.6,2422.6,1.3755]
[1749170371137,3.2078,2423.0,2422.6,1.3755]
[1749170371336,0.82509,2422.9,2422.6,1.3755]
[1749170371547,0.82502,2423.1,2422.7,0.82512]
[1749170371742,0.82498,2423.2,2422.8,0.8251]
[1749170371946,6.147,2423.4,2422.8,1.3755]
[1749170371947,0.825,2423.1,2422.8,1.3755]
[1749170372243,0.82501,2423.1,2422.8,1.3755]
[1749170372843,1.4044,2423.3,2422.8,1.3755]
[1749170373053,4.03288,2422.9,2422.5,2.13168]
[1749170373243,0.82503,2423.1,2422.7,0.82511]
[1749170373434,1.4044,2423.3,2422.8,0.8251]
[1749170373639,0.82496,2423.2,2422.8,0.8251]
[1749170373839,0.82493,2423.3,2422.9,0.82505]
[1749170374347,0.82497,2423.2,2422.8,1.3755]
[1749170374746,0.82495,2423.3,2422.8,1.3755]
[1749170374948,0.82497,2423.2,2422.8,1.3755]
[1749170375149,0.82497,2423.2,2422.8,2.20058]
[1749170375640,3.2078,2423.4,2422.8,7.5215]
[1749170375846,0.82496,2423.2,2422.8,7.5215]
[1749170376450,0.82501,2423.1,2422.8,7.5215]
[1749170376954,0.82498,2423.2,2422.8,8.3466]
[1749170377551,0.825,2423.1,2422.8,7.5215]
[1749170378249,0.825,2423.1,2422.8,8.3466]
[1749170378450,0.825,2423.1,2422.8,7.5215]
[1749170378949,0.825,2423.1,2422.8,8.3466]
[1749170379344,3.2078,2423.4,2423.0,3.2078]
[1749170379647,3.2078,2423.4,2423.1,2.6832]
[1749170379847,0.82494,2423.3,2423.1,2.6832]
[1749170380046,3.2078,2423.4,2423.1,2.6832]
[1749170380349,0.82498,2423.2,2422.9,8.26266]
[1749170380552,0.82495,2423.3,2423.0,2.7072]
[1749170380742,0.82497,2423.2,2423.0,2.7072]
[1749170380939,3.2078,2423.4,2423.0,6.74003]
[1749170381250,0.82494,2423.3,2423.0,6.74003]
[1749170381748,0.82492,2423.4,2423.0,5.915]
[1749170382051,1.2839,2423.6,2423.3,3.2078]
[1749170382452,1.2839,2423.6,2423.4,1.3777]
[1749170382643,2.10873,2423.6,2423.4,1.3777]
[1749170384149,2.10874,2423.6,2423.4,1.3777]
[1749170384658,1.2839,2423.6,2423.4,2.20259]
[1749170384854,1.2839,2423.6,2423.4,1.3777]
[1749170385757,2.23221,2423.7,2423.4,1.3777]
[1749170385758,3.2078,2424.1,2423.4,1.3777]
[1749170385959,3.2078,2424.1,2423.6,3.2078]
[1749170386159,0.82471,2424.0,2423.6,4.03262]
[1749170386455,1.369,2424.0,2423.6,3.2078]
[1749170386655,1.369,2424.0,2423.6,5.8975]
[1749170386850,2.1937,2424.0,2423.7,0.82479]
[1749170387051,1.369,2424.0,2423.6,5.8975]
[1749170387255,0.82478,2423.8,2423.6,3.2078]
[1749170387455,0.82475,2423.9,2423.6,3.2078]
[1749170387656,0.82475,2423.9,2423.6,9.3108]
[1749170387957,0.82476,2423.8,2423.6,9.3108]
[1749170388157,0.82479,2423.7,2423.6,9.3108]
[1749170388353,0.18758388,2424.2,2423.5,0.00619054]
[1749170388354,3.39538388,2424.2,2423.5,0.00619054]
[1749170388655,0.82472,2424.0,2423.6,2.12083]
[1749170388851,0.82474,2423.9,2423.6,1.296]
[1749170389251,0.82471,2424.0,2423.6,2.12082]
[1749170389456,4.71338388,2424.2,2423.8,0.82474]
[1749170389457,0.82467,2424.1,2423.8,0.82474]
[1749170389757,5.53803388,2424.2,2423.8,2.11554]
[1749170389955,1.17567738,2424.1,2423.8,2.11554]
[1749170390152,5.53803388,2424.2,2423.8,2.11554]
[1749170390358,1.17640183,2424.1,2423.9,0.82472]
[1749170390560,5.53801388,2424.2,2423.8,1.2908]
[1749170390857,1.17629174,2424.1,2423.9,0.82471]
[1749170391058,4.71338388,2424.2,2423.9,0.82471]
[1749170391255,4.71338388,2424.2,2423.8,1.2908]
[1749170391460,4.71338388,2424.2,2424.0,0.82467]
[1749170391762,5.53802388,2424.2,2423.8,1.2908]
[1749170391961,5.53802388,2424.2,2423.9,0.82471]
[1749170392257,0.82472,2424.0,2423.7,4.611]
[1749170392453,1.17777375,2423.9,2423.7,4.611]
[1749170392757,1.17783268,2423.8,2423.7,1.4032]
[1749170393959,1.17783268,2423.8,2423.7,2.22799]
[1749170394151,1.17783268,2423.8,2423.7,2.7015]
[1749170394554,1.17783268,2423.8,2423.6,3.2078]
[1749170394863,1.17783268,2423.7,2423.6,3.2078]
[1749170395157,1.17783268,2424.0,2423.6,3.2078]
[1749170395360,1.17783268,2423.9,2423.6,3.2078]
[1749170395552,1.17783268,2423.8,2423.6,4.03262]
[1749170395753,1.17783268,2423.8,2423.7,0.82479]
[1749170395958,1.17783268,2423.9,2423.6,5.43101]
[1749170396158,1.17783268,2423.8,2423.6,5.43101]
[1749170396358,1.17783268,2423.7,2423.6,5.43101]
[1749170396657,0.82469,2424.0,2423.7,0.82477]
[1749170396860,1.17886023,2423.9,2423.6,5.43102]
[1749170397164,1.17886023,2423.8,2423.6,5.43102]
[1749170397463,1.17886023,2423.7,2423.6,5.43102]
[1749170397654,1.17886023,2423.8,2423.6,5.43102]
[1749170397856,1.17886023,2423.7,2423.6,5.43102]
[1749170398056,2.00360023,2423.9,2423.6,5.43102]
[1749170398358,1.17886023,2423.8,2423.6,5.43102]
[1749170398558,1.17886023,2423.7,2423.6,5.43102]
[1749170398749,1.17886023,2423.8,2423.6,5.43102]
[1749170398951,1.17886023,2423.8,2423.7,0.82479]
[1749170399155,1.17886023,2423.9,2423.7,0.82479]
[1749170399354,1.17886023,2423.8,2423.5,7.50289054]
[1749170399561,2.00368023,2423.7,2423.5,6.10919054]
[1749170399761,2.00369023,2423.6,2423.5,0.00619054]
[1749170399955,2.00369023,2423.6,2422.9,3.2078]
[1749170399956,7.14656023,2423.6,2422.9,3.2078]
[1749170400156,0.82498,2423.2,2422.9,4.03285]
[1749170400463,2.00386023,2423.1,2422.9,3.2078]
[1749170400661,4.38666023,2423.0,2422.3,3.2078]
[1749170400865,2.7599,2422.9,2422.4,0.00619054]
[1749170401058,2.00438742,2422.8,2422.4,0.83141054]
[1749170401258,1.17928742,2422.7,2422.4,1.42849054]
[1749170401556,1.17928742,2422.6,2422.5,2.7589]
[1749170401760,0.82517,2422.6,2422.5,1.3411]
[1749170401953,0.8252,2422.5,2422.4,0.00619054]
[1749170402262,3.29978742,2422.5,2422.4,0.00619054]
[1749170402462,2.47458742,2422.5,2422.4,0.00619054]
[1749170403061,6.49419435,2423.4,2422.4,5.00619054]
[1749170403264,3.86117563,2423.3,2422.5,5.989]
[1749170403561,3.2078,2423.0,2422.5,2.7812]
[1749170403754,1.17817563,2422.9,2422.4,0.00619054]
[1749170403954,0.82515,2422.7,2422.4,0.00619054]
[1749170404158,1.17817563,2422.6,2422.4,0.00619054]
[1749170404460,1.17817563,2422.6,2422.5,0.07133351]
[1749170404662,1.2953,2422.8,2422.5,0.07133351]
[1749170404963,1.3491,2423.3,2422.5,0.07133351]
[1749170404964,1.3491,2423.3,2422.9,0.82505]
[1749170405267,3.2078,2423.5,2422.9,3.2078]
[1749170405463,0.82499,2423.2,2422.7,6.92811]
[1749170405663,0.82506,2423.0,2422.7,7.3899]
[1749170405864,2.20731,2423.1,2422.7,6.103]
[1749170406066,1.17661536,2423.0,2422.7,6.103]
[1749170406263,2.20731,2423.1,2422.7,6.103]
[1749170406465,1.17663721,2423.0,2422.7,6.103]
[1749170406765,2.20731,2423.1,2422.7,6.92813]
[1749170406955,1.3823,2423.1,2422.7,6.103]
[1749170407159,1.3823,2423.1,2422.5,1.35823351]
[1749170407160,2.59088417,2423.0,2422.5,0.07133351]
[1749170407359,0.82515,2422.7,2422.4,0.00619054]
[1749170407569,0.82512,2422.8,2422.4,0.83142054]
[1749170408068,1.409,2422.9,2422.5,0.82519]
[1749170408263,1.4147,2423.0,2422.4,0.00619054]
[1749170408461,1.4147,2423.0,2422.5,0.07133351]
[1749170408772,1.3823,2423.1,2422.8,0.82509]
[1749170409266,2.2073,2423.1,2422.7,0.82511]
[1749170409466,1.3823,2423.1,2422.6,8.24455]
[1749170409658,2.20731,2423.1,2422.7,0.82512]
[1749170409862,2.20731,2423.1,2422.6,6.103]
[1749170409863,0.82504,2423.0,2422.6,6.103]
[1749170410167,2.23404,2423.0,2422.6,6.92814]
[1749170410367,2.20731,2423.1,2422.7,0.82513]
[1749170410961,2.6815,2423.1,2422.6,7.4242]
[1749170411162,3.50651,2423.1,2422.7,0.82511]
[1749170411363,0.82503,2423.0,2422.7,0.82511]
[1749170411965,0.82505,2423.0,2422.6,8.24934]
[1749170412159,0.82509,2422.9,2422.6,6.103]
[1749170412364,2.12424,2423.0,2422.7,0.82513]
[1749170412566,0.82509,2422.9,2422.6,6.103]
[1749170412959,0.82509,2422.9,2422.6,6.92816]
[1749170413471,3.2078,2422.9,2422.5,0.07133351]
[1749170413662,0.82515,2422.7,2422.5,0.07133351]
[1749170413865,0.82517,2422.6,2422.5,0.07133351]
[1749170414265,2.7294,2422.8,2422.5,0.07133351]
[1749170414470,1.4015,2422.8,2422.5,0.07133351]
[1749170414773,2.22663,2422.8,2422.5,0.89652351]
[1749170415165,0.82514,2422.7,2422.5,0.89652351]
[1749170415364,2.22662,2422.8,2422.5,0.89652351]
[1749170415568,2.7102,2423.1,2422.5,1.35383351]
[1749170415766,0.82505,2423.0,2422.7,0.8251]
[1749170416263,0.82505,2423.0,2422.6,0.82514]
[1749170416463,0.82505,2423.0,2422.6,2.10764]
[1749170416664,0.82508,2422.9,2422.6,2.10764]
[1749170417173,0.82509,2422.9,2422.6,2.10766]
[1749170417369,0.82491,2423.4,2423.2,0.82496]
[1749170417674,3.2078,2423.5,2422.9,0.82503]
[1749170417675,0.82496,2423.2,2422.9,0.82503]
[1749170417865,0.82496,2423.3,2422.9,0.82504]
[1749170418068,0.82497,2423.2,2422.9,0.82504]
[1749170418264,5.9798,2423.5,2422.8,1.3418]
[1749170418476,0.82498,2423.2,2422.9,0.82506]
[1749170419376,0.82495,2423.3,2423.0,0.82502]
[1749170419678,4.6007,2423.5,2423.3,0.82492]
[1749170419975,4.6007,2423.5,2422.7,5.9179]
[1749170420164,1.3316,2423.4,2422.7,5.9179]
[1749170420370,0.82505,2423.0,2422.7,12.81003]
[1749170420568,0.82505,2423.0,2422.8,0.07133351]
[1749170420773,0.82501,2423.1,2422.8,0.07133351]
[1749170420974,0.82499,2423.2,2422.8,0.89642351]
[1749170421181,0.82501,2423.1,2422.8,0.89642351]
[1749170421475,0.82504,2423.0,2422.8,0.07133351]
[1749170422374,0.82502,2423.1,2422.8,0.07133351]
[1749170422575,1.3316,2423.4,2422.8,0.89640351]
[1749170422776,0.82502,2423.1,2422.8,0.89640351]
[1749170422966,1.308,2423.0,2422.8,0.89640351]
[1749170423167,1.308,2423.0,2422.8,0.89641351]
[1749170423476,2.13306,2423.0,2422.8,0.89643351]
[1749170423775,4.03286,2422.9,2422.8,0.07133351]
[1749170423971,5.36826,2422.9,2422.8,0.07133351]
[1749170424778,1.3354,2422.9,2422.8,0.07133351]
[1749170425377,9.2748,2423.5,2422.8,0.07133351]
[1749170425577,0.82505,2423.0,2422.8,0.07133351]
[1749170425773,3.2078,2423.3,2422.8,0.07133351]
[1749170425974,0.82506,2422.9,2422.8,0.07133351]
[1749170426279,0.82505,2423.0,2422.8,0.07133351]
[1749170426771,0.82507,2422.9,2422.8,0.07133351]
[1749170427275,4.03287,2422.9,2422.8,0.07133351]
[1749170427575,0.82507,2422.9,2422.8,0.07133351]
[1749170428275,4.4918,2423.2,2422.8,0.07133351]
[1749170428476,2.02292992,2423.1,2422.9,0.82506]
[1749170428677,0.82502,2423.1,2422.9,2.23326]
[1749170428874,0.82503,2423.0,2422.9,1.4082]
[1749170429178,0.82502,2423.1,2422.9,1.4082]
[1749170429976,0.82502,2423.1,2422.9,2.23326]
[1749170430177,0.82498,2423.2,2422.9,2.23325]
[1749170430377,1.19884339,2423.1,2422.9,1.4082]
[1749170430573,0.82498,2423.2,2422.9,2.23324]
[1749170430974,2.7509,2423.4,2422.9,1.4082]
[1749170431182,4.03873091,2423.8,2423.5,0.82486]
[1749170431382,2.02342117,2423.7,2423.6,1.3966]
[1749170431674,0.82493,2423.3,2423.2,3.2078]
[1749170432069,0.82491,2423.4,2423.2,3.2078]
[1749170432276,2.685,2423.6,2423.2,3.2078]
[1749170432472,0.82492,2423.4,2423.2,3.2078]
[1749170432683,0.82493,2423.3,2423.2,3.2078]
[1749170433478,0.82498,2423.2,2423.0,1.3803]
[1749170433881,0.82498,2423.2,2423.0,3.54202]
[1749170434082,0.82497,2423.2,2423.0,3.54202]
[1749170434984,0.82495,2423.3,2423.0,3.54202]
[1749170435283,1.19749894,2423.2,2423.0,3.54202]
[1749170435482,3.2078,2423.5,2423.0,3.54202]
[1749170435681,0.82493,2423.3,2423.2,0.07133351]
[1749170435881,2.02247035,2423.3,2423.2,0.07133351]
[1749170436881,0.8251,2422.8,2422.7,3.2078]
[1749170437181,0.8251,2422.8,2422.4,7.98011054]
[1749170437182,1.19768232,2422.8,2422.4,7.98011054]
[1749170437386,0.82516,2422.7,2422.5,0.8252]
[1749170437573,4.5423,2423.1,2422.4,7.15489054]
[1749170437574,0.82518,2422.6,2422.4,7.98012054]
[1749170437979,0.82519,2422.6,2422.4,7.15489054]
[1749170438179,10.81319,2423.0,2422.4,7.98013054]
[1749170438385,0.82519,2422.6,2422.4,7.98013054]
[1749170438590,1.21522122,2422.9,2422.4,7.98013054]
[1749170438591,5.24888136,2422.5,2422.4,0.00619054]
[1749170439087,2.04108136,2422.5,2422.4,0.00619054]
[1749170439282,1.21588136,2422.5,2422.4,0.00619054]
[1749170439585,3.2078,2422.8,2422.6,0.82516]
[1749170439782,1.2906,2423.0,2422.5,1.4017]
[1749170439982,0.8251,2422.8,2422.6,2.7767]
[1749170440289,0.82514,2422.7,2422.6,1.4098]
[1749170440482,0.82517,2422.6,2422.5,1.4017]
[1749170440782,4.4984,2423.0,2422.5,1.4017]
[1749170440988,0.82511,2422.8,2422.5,3.63029]
[1749170441589,0.82514,2422.7,2422.5,2.8051]
[1749170441992,0.8252,2422.5,2422.4,0.00619054]
[1749170442388,0.82519,2422.6,2422.4,0.00619054]
[1749170442596,5.8377,2423.0,2422.4,1.40959054]
[1749170442791,0.8252,2422.6,2422.4,1.40959054]
[1749170443093,0.8251,2422.8,2422.5,0.82518]
[1749170443287,2.06766413,2422.7,2422.6,1.4034]
[1749170444083,1.24250413,2422.7,2422.6,1.4034]
[1749170444288,2.06764413,2422.7,2422.6,1.4034]
[1749170444691,1.3345,2423.1,2422.6,1.4034]
[1749170444891,0.82512,2422.8,2422.6,1.4034]
[1749170445096,2.06259,2423.0,2422.4,3.21399054]
[1749170445287,3.2078,2422.6,2421.2,3.2078]
[1749170445494,3.2078,2421.8,2421.2,3.2078]
[1749170445804,3.2078,2421.8,2421.3,1.2874]
[1749170445805,1.24107075,2421.7,2421.3,1.2874]
[1749170445990,1.3359,2421.7,2421.3,1.2874]
[1749170446190,0.82551,2421.6,2421.3,2.11301]
[1749170446387,1.34209054,2421.7,2421.3,1.2874]
[1749170446988,0.00619054,2421.7,2421.3,1.2874]
[1749170447196,0.00619054,2421.7,2421.5,0.82552]
[1749170447395,0.00619054,2421.7,2421.3,7.3214]
[1749170447396,0.00619054,2421.7,2421.6,2.7087]
[1749170448997,0.82551,2421.6,2421.5,1.3012]
[1749170449296,0.00619054,2421.7,2421.2,9.24799054]
[1749170449297,0.82561,2421.3,2421.2,3.21399054]
[1749170450203,0.8256,2421.4,2421.2,3.21399054]
[1749170450497,0.82561,2421.3,2421.2,0.00619054]
[1749170451303,3.2078,2421.5,2421.2,0.00619054]
[1749170451501,0.82556,2421.5,2421.2,0.83182054]
[1749170451703,1.2805,2421.6,2421.3,1.3299]
[1749170451898,0.83168054,2421.7,2421.6,0.07133351]
[1749170457509,0.00619054,2421.7,2421.6,0.07133351]
[1749170457709,0.83167054,2421.7,2421.6,0.07133351]
[1749170458400,0.00619054,2421.7,2421.6,0.07133351]
[1749170458604,0.00619054,2421.7,2421.6,0.89684351]
[1749170459511,0.00619054,2421.7,2421.6,2.29304351]
[1749170460105,0.00619054,2421.7,2421.6,2.22171]
[1749170460908,3.2078,2422.3,2421.6,7.22171]
[1749170461107,1.3972,2422.5,2421.9,3.2078]
[1749170461316,2.6174,2423.1,2422.2,3.2078]
[1749170461614,0.82504,2423.0,2422.6,0.82517]
[1749170461916,0.00615091,2423.0,2422.7,2.22131]
[1749170462219,0.00615091,2423.0,2422.9,0.82507]
[1749170462511,0.00615091,2423.0,2422.9,6.86107]
[1749170462818,0.00615091,2423.0,2422.9,8.27107]
[1749170463010,0.00615091,2423.0,2422.9,2.8248]
[1749170463216,0.00615091,2423.0,2422.9,9.68587]
[1749170464312,0.00615091,2423.0,2422.9,8.8608]
[1749170465417,0.00615091,2423.0,2422.9,9.68587]
[1749170467214,0.00615091,2423.0,2422.9,8.8608]
[1749170467414,0.00615091,2423.0,2422.9,6.034]
[1749170468621,0.00615091,2423.0,2422.9,8.27447]
[1749170470019,0.00615091,2423.0,2422.9,7.4494]
[1749170470213,0.00615091,2423.0,2422.8,9.2418]
[1749170470420,0.83120091,2423.0,2422.8,3.2078]
[1749170471217,0.00615091,2423.0,2422.8,4.0329]
[1749170471422,0.00615091,2423.0,2422.9,0.82507]
[1749170471923,0.00615091,2423.0,2422.9,2.21657]
[1749170472120,0.00615091,2423.0,2422.8,3.2078]
[1749170472318,0.83121091,2423.0,2422.8,3.2078]
[1749170473422,0.83121091,2423.0,2422.8,4.0329]
[1749170473920,0.83121091,2423.0,2422.8,3.2078]
[1749170475126,0.00615091,2423.0,2422.9,0.82507]
[1749170475418,0.00615091,2423.0,2422.8,5.41719]
[1749170475725,0.00615091,2423.0,2422.8,5.41717]
[1749170476624,0.00615091,2423.0,2422.8,4.5921]
[1749170476826,0.82507,2422.9,2422.8,4.5921]
[1749170477226,0.82507,2422.9,2422.8,3.2078]
[1749170477819,0.82507,2422.9,2422.6,0.83136054]
[1749170477820,0.00615091,2423.0,2422.6,0.00619054]
[1749170478024,0.82512,2422.8,2422.6,0.83136054]
[1749170478234,1.24175091,2423.0,2422.6,0.83136054]
[1749170478524,0.82511,2422.8,2422.6,0.00619054]
[1749170478716,0.82511,2422.8,2422.6,1.35279054]
[1749170478919,0.82514,2422.7,2422.6,0.00619054]
[1749170481220,1.2332,2422.9,2422.6,0.00619054]
[1749170481523,1.2332,2422.9,2422.7,0.82511]
[1749170481524,0.82509,2422.9,2422.7,0.82511]
[1749170481726,0.82507,2422.9,2422.7,0.82511]
[1749170482025,0.82507,2422.9,2422.7,2.09191]
[1749170482424,0.82507,2422.9,2422.7,1.2668]
[1749170482630,1.24175091,2423.0,2422.7,5.29971]
[1749170482816,1.24175091,2423.0,2422.8,0.8251]
[1749170483125,2.06681091,2423.0,2422.8,1.2668]
[1749170483429,0.83119091,2423.0,2422.8,1.2668]
[1749170483617,0.82507,2422.9,2422.8,1.2668]
[1749170484224,0.00615091,2423.0,2422.7,4.5078]
[1749170484528,0.00615091,2423.0,2422.6,0.00619054]
[1749170484725,0.00615091,2423.0,2422.6,1.29319054]
[1749170484925,0.82512,2422.8,2422.6,1.29319054]
[1749170485123,0.82514,2422.7,2422.6,0.00619054]
[1749170485319,2.15984,2422.7,2422.6,0.00619054]
[1749170485928,1.3347,2422.7,2422.6,0.83136054]
[1749170486122,1.34085091,2423.0,2422.6,0.83136054]
[1749170486326,1.34085091,2423.0,2422.7,1.287]
[1749170486630,0.8251,2422.8,2422.7,1.287]
[1749170487627,2.16590091,2423.0,2422.7,2.11211]
[1749170487831,0.82507,2422.9,2422.7,1.287]
[1749170488131,0.8251,2422.8,2422.7,1.287]
[1749170488441,0.00615091,2423.0,2422.9,0.82507]
[1749170488728,0.00615091,2423.0,2422.9,10.03187]
[1749170488931,0.00615091,2423.0,2422.9,9.2068]
[1749170489135,0.00615091,2423.0,2422.9,11.33597]
[1749170491128,1.3577,2423.6,2423.5,0.82486]
[1749170491327,3.2078,2424.3,2423.4,3.2078]
[1749170491527,2.0780692,2424.1,2423.7,3.2078]
[1749170491731,1.2533992,2424.0,2423.8,2.21085]
[1749170491935,0.82467,2424.1,2423.8,2.21085]
[1749170492232,1.25476124,2424.0,2423.9,0.82473]
[1749170492440,0.18758388,2424.2,2424.1,0.82466]
[1749170492734,0.18758388,2424.2,2424.1,10.03146]
[1749170493124,0.18758388,2424.2,2424.1,3.2078]
[1749170493330,0.18758388,2424.2,2424.0,9.2068]
[1749170493644,0.18758388,2424.2,2424.0,10.511]
[1749170493831,0.18758388,2424.2,2424.0,11.33567]
[1749170494740,0.18758388,2424.2,2424.0,10.511]
[1749170494935,0.82466,2424.1,2424.0,3.2078]
[1749170495538,2.18446,2424.1,2424.0,3.2078]
[1749170495834,1.3598,2424.1,2424.0,3.2078]
[1749170496630,1.3598,2424.1,2424.0,4.5729]
[1749170497638,0.82466,2424.1,2424.0,3.2078]
[1749170497936,0.82466,2424.1,2423.7,0.83097054]
[1749170497937,0.82476,2423.8,2423.7,0.00619054]
[1749170498331,3.37391,2424.0,2423.7,0.00619054]
[1749170498635,0.82476,2423.8,2423.7,0.00619054]
[1749170499143,1.3077,2424.0,2423.7,0.00619054]
[1749170499332,1.3077,2424.0,2423.8,3.2078]
[1749170499534,1.3077,2424.0,2423.9,1.2855]
[1749170500142,1.01222388,2424.2,2423.9,2.11023]
[1749170500437,1.01223388,2424.2,2423.9,1.2855]
[1749170500640,0.18758388,2424.2,2424.1,0.07133351]
[1749170500842,1.01221388,2424.2,2424.1,0.07133351]
[1749170501039,0.18758388,2424.2,2424.1,0.07133351]
[1749170501239,0.18758388,2424.2,2424.1,1.35683351]
[1749170501645,1.01221388,2424.2,2424.1,0.07133351]
[1749170502537,0.18758388,2424.2,2424.1,0.07133351]
[1749170502938,0.18758388,2424.2,2424.1,0.89599351]
[1749170503139,0.18758388,2424.2,2424.1,2.23369351]
[1749170503540,0.18758388,2424.2,2424.1,5.44149351]
[1749170504733,0.18758388,2424.2,2424.1,1.40903351]
[1749170507447,1.01221388,2424.2,2424.1,1.40903351]
[1749170507649,0.18758388,2424.2,2424.1,1.40903351]
[1749170509349,0.18758388,2424.2,2424.1,2.23369351]
[1749170509853,1.01221388,2424.2,2424.1,0.07133351]
[1749170510153,0.18758388,2424.2,2424.1,0.07133351]
[1749170510355,1.01220388,2424.2,2424.1,0.07133351]
[1749170510850,6.01220388,2424.2,2424.1,0.07133351]
[1749170511049,0.82476,2423.8,2423.7,0.00619054]
[1749170511245,2.07505247,2423.8,2423.7,0.00619054]
[1749170511456,8.4951,2424.1,2423.7,0.00619054]
[1749170511654,0.82476,2423.9,2423.7,0.00619054]
[1749170511854,8.4951,2424.1,2423.7,0.00619054]
[1749170512155,0.82476,2423.8,2423.7,0.00619054]
[1749170516253,1.2435,2424.0,2423.7,0.00619054]
[1749170516254,0.82474,2423.9,2423.7,0.00619054]
[1749170516459,0.82474,2423.9,2423.7,2.59169054]
[1749170517055,0.82476,2423.8,2423.7,2.59169054]
[1749170517755,0.82475,2423.9,2423.7,2.59169054]
[1749170518158,0.82476,2423.8,2423.7,2.59169054]
[1749170518756,0.82476,2423.8,2423.7,0.00619054]
[1749170519564,2.08094344,2423.8,2423.7,0.00619054]
[1749170521051,2.08240175,2423.8,2423.7,0.00619054]
[1749170522161,3.41710175,2423.8,2423.7,0.00619054]
[1749170523159,8.41710175,2423.8,2423.7,0.00619054]
[1749170523957,8.41710175,2423.8,2423.1,6.78599]
[1749170523958,0.82497,2423.2,2423.1,5.961]
[1749170524162,0.82496,2423.3,2423.1,0.82499]
[1749170524365,1.2667,2423.5,2423.1,1.3164]
[1749170524559,0.82495,2423.3,2423.1,2.14138]
[1749170525265,0.00619054,2423.4,2423.3,0.82493]
[1749170525961,0.00619054,2423.4,2423.3,2.14133]
[1749170528554,0.00619054,2423.4,2423.3,1.3164]
[1749170528866,0.00619054,2423.4,2423.3,7.2774]
[1749170529061,0.00619054,2423.4,2423.3,8.10233]
[1749170533366,0.00619054,2423.4,2423.3,7.2774]
[1749170533566,0.00619054,2423.4,2423.2,1.2255]
[1749170533767,0.83111054,2423.4,2423.2,1.2255]
[1749170533962,0.00619054,2423.4,2423.2,2.05045]
[1749170534167,0.00619054,2423.4,2423.2,3.44295]
[1749170534470,0.00619054,2423.4,2423.3,0.82493]
[1749170534659,0.00619054,2423.4,2423.3,2.21743]
[1749170536367,0.00619054,2423.4,2423.3,1.3925]
[1749170536868,0.83109054,2423.4,2423.3,1.3925]
[1749170537165,0.83111054,2423.4,2423.1,4.03278]
[1749170537373,0.00619054,2423.4,2423.3,0.82493]
[1749170538073,0.00619054,2423.4,2423.3,2.16153]
[1749170538569,0.00619054,2423.4,2423.3,1.3366]
[1749170538870,0.00619054,2423.4,2423.3,2.16153]
[1749170539773,0.00619054,2423.4,2423.3,8.08753]
[1749170539965,0.00619054,2423.4,2423.3,8.15886351]
[1749170541866,2.5772,2424.1,2423.7,0.82476]
[1749170542071,2.08720564,2424.0,2423.7,0.82476]
[1749170542373,1.26251564,2423.9,2423.8,1.3367]
[1749170543775,1.26251564,2423.9,2423.8,2.16146]
[1749170543976,1.3078,2424.1,2423.8,4.5445]
[1749170544175,2.13246,2424.1,2423.8,5.36924]
[1749170544576,2.13246,2424.1,2423.8,2.16144]
[1749170545774,1.3078,2424.1,2423.9,0.82472]
[1749170545975,2.13248,2424.1,2423.8,2.16145]
[1749170546771,1.3078,2424.1,2423.9,0.82471]
[1749170547169,0.18758388,2424.2,2423.8,4.5445]
[1749170547383,0.18758388,2424.2,2424.1,4.03246]
[1749170548073,0.18758388,2424.2,2424.1,0.82466]
[1749170549074,0.18758388,2424.2,2424.1,4.03246]
[1749170549274,0.18758388,2424.2,2424.1,9.95846]
[1749170551174,1.2384,2424.8,2424.6,0.82447]
[1749170551775,2.06283,2424.8,2424.5,0.83069054]
[1749170552177,3.34553,2424.8,2424.5,0.83069054]
[1749170552378,2.5211,2424.8,2424.5,0.00619054]
[1749170552579,0.82449,2424.6,2424.5,0.00619054]
[1749170553283,0.82448,2424.7,2424.5,0.00619054]
[1749170553985,0.82447,2424.7,2424.5,0.00619054]
[1749170554378,3.8363,2424.8,2424.5,0.83071054]
[1749170554379,4.66074,2424.8,2424.5,0.83071054]
[1749170554581,0.82446,2424.7,2424.5,0.00619054]
[1749170555070,0.82449,2424.6,2424.5,0.00619054]
[1749170555475,0.82447,2424.7,2424.5,0.00619054]
[1749170555879,0.82449,2424.6,2424.5,0.00619054]
[1749170556076,0.82447,2424.7,2424.5,0.00619054]
[1749170556384,3.8363,2424.8,2424.5,0.07752405]
[1749170556688,0.82446,2424.7,2424.5,0.07752405]
[1749170556886,0.82449,2424.6,2424.5,0.07752405]
[1749170557182,4.03229,2424.6,2424.5,0.07752405]
[1749170557383,0.82449,2424.6,2424.5,0.07752405]
[1749170558776,0.82448,2424.7,2424.5,0.07752405]
[1749170558977,0.82449,2424.6,2424.5,0.07752405]
[1749170560983,3.8363,2424.8,2424.5,0.07752405]
[1749170561185,2.08609753,2424.7,2424.5,0.07752405]
[1749170561380,3.8363,2424.8,2424.5,0.07752405]
[1749170561585,2.08615632,2424.7,2424.5,0.07752405]
[1749170561778,3.8363,2424.8,2424.5,0.07752405]
[1749170562278,0.82449,2424.6,2424.5,0.07752405]